{"text_format":"1","workbook":"xlsx","n_sheets":1,"sheets":["練習室"],"not_rendered":{"charts":0,"images":0,"macros":1,"external_links":0,"defined_names":0,"comments":0,"pivot_tables":0},"unopened":[],"bounds":{"document_bytes":16777216,"sheet_cells":100000,"rows_first":2000,"rows_last":500,"rows_between":2000,"halvings":0,"cell_chars":16384,"cell_head_chars":4096},"cells_cut":0,"cells_raw":0,"read":"whole","date_system":"1900"}

{"sheet":"練習室","index":0,"n_rows":84,"n_cols":28,"rows_kept":84,"cut":false,"hidden":false,"merged":[[0,12,0,14],[2,0,3,2],[5,8,6,9],[8,1,9,5],[8,6,9,6],[8,8,9,10],[8,11,9,13],[8,14,9,15],[10,1,10,5],[10,8,10,10],[10,14,10,15],[14,8,14,10],[14,14,14,15],[17,8,17,10],[17,14,17,15],[20,8,20,10],[20,14,20,15],[23,1,23,5],[23,8,23,10],[23,14,23,15],[24,1,24,5],[24,8,24,10],[24,14,24,15],[26,13,27,13],[26,14,27,15],[29,1,29,5],[29,8,29,10],[51,14,52,15],[30,1,30,5],[30,8,30,10],[34,8,34,10],[34,14,34,15],[35,14,35,15]]}
["ピアザ淡海　滋賀県立県民交流センター",null,null,null,null,null,null,null,null,null,null,null,"2025-04-01",null,null,"改定"]
["■付帯設備使用申込書"]
["練習室",null,null,null,null,null,null,null,"指定管理者",null,null,null,null,null,null," 株式会社 コンベンションリンケージ　"]
[null,null,null,null,"年","月","日","曜日",null,null,null,null,"h:mm",null,"h:mm","←記入例"]
[null,null,"利用日",null,null,null,null,null,null,null,"本番時間",null,null,"～"]
["備考",null,null,null,null,null,null,null,"使用区分",null,null,null,"午前　午後　夜間"]
[null,null,null,null,null,null,null,null,null,null,null,null,null,null,null,null,null,false,false,false,{"$f":"SUM(R7:T7)","v":0},false,false,false]
["●ピアノ"]
[null,"品　　　　　　名",null,null,null,null,"単位","1区分","数　量",null,null,"区　分",null,null,"金　額"]
[null,null,null,null,null,null,null,"使用料",null,null,null,null,null,null,null,null,null,null,null,null,"計"]
["楽器","ピアノ\n（ｽﾀｲﾝｳｴｲ＆ｻﾝｽﾞ社製O－１８０）",null,null,null,null,"１台",2430,null,null,null,"A","P","N",{"$f":"IF(I11=\"\",\"\",H11*I11*U11)","v":""},null,null,{"$f":"IF(V11,1)","v":false},{"$f":"IF(W11,1)","v":false},{"$f":"IF(X11,1)","v":false},{"$f":"SUM(R11:T11)","v":0},false,false,false,null,{"$f":"\"ピアノ\"&$I$11","v":"ピアノ"}]
[]
[]
["●譜面台（最大17台）"]
[null,"譜面台",null,null,null,null,"１台",60,null,null,null,"A","P","N",{"$f":"IF(I15=\"\",\"\",H15*I15*U15)","v":""},null,null,{"$f":"IF(V15,1)","v":false},{"$f":"IF(W15,1)","v":false},{"$f":"IF(X15,1)","v":false},{"$f":"SUM(R15:T15)","v":0},false,false,false,null,{"$f":"\"譜面台\"&$I$15","v":"譜面台"}]
[]
["●",null,null,null,null,null,null,null,null,null,null,null,null,null,null,null,null,null,null,null,"計"]
[null,null,null,null,null,null,null,null,null,null,null,"A","P","N",{"$f":"IF(I18=\"\",\"\",H18*I18*U18)","v":""},null,null,{"$f":"IF(V18,1)","v":false},{"$f":"IF(W18,1)","v":false},{"$f":"IF(X18,1)","v":false},{"$f":"SUM(R18:T18)","v":0},false,false,false,null,{"$f":"\"コンセント\"&I18","v":"コンセント"}]
[]
["●マイク"]
["常設","ワイヤレスマイク ２本",null,null,null,null,"１セット",470,null,null,null,"A","P","N",{"$f":"IF(I21=\"\",\"\",H21*I21*U21)","v":""},null,null,{"$f":"IF(V21,1)","v":false},{"$f":"IF(W21,1)","v":false},{"$f":"IF(X21,1)","v":false},{"$f":"SUM(R21:T21)","v":0},false,false,false,null,{"$f":"\"ハンド2\"&I21","v":"ハンド2"}]
[]
["●音響・映像機器"]
["常設","CD",null,null,null,null,"1台",350,null,null,null,"A","P","N",{"$f":"IF(I24=\"\",\"\",H24*I24*U24)","v":""},null,null,{"$f":"IF(V24,1)","v":false},false,false,{"$f":"SUM(R24:T24)","v":0},false,false,false,null,{"$f":"\"CD\"&I24","v":"CD"}]
["常設","カセットデッキ　（録音不可）",null,null,null,null,"１台",350,null,null,null,"A","P","N",{"$f":"IF(I25=\"\",\"\",H25*I25*U25)","v":""},null,null,false,false,false,{"$f":"SUM(R25:T25)","v":0},false,false,false,null,{"$f":"\"カセット\"&I25","v":"カセット"}]
[]
[null,null,null,null,null,null,null,null,null,null,null,null,null,"合計",{"$f":"SUM(O11:P25)","v":0}]
[]
["●その他 無料貸し出し品"]
["追加","椅子（２０脚まで）",null,null,null,null,"脚","無料",null,null,null,"（20台以上は有料）",null,null,null,null,null,null,null,null,null,null,null,null,null,{"$f":"\"椅子\"&I30","v":"椅子"}]
[]
["※付帯設備の利用料については、上記の表に基づいてお支払い下さい。"]
["　 尚、事前のお支払いでも当日追加変更が、あった場合追加分の料金が必要となります。"]
["※お申込みの追加備品につきましては、数に制約がありご要望に添えない場合が"]
["   ありますのでご了承ください。",null,null,null,null,null,null,null,null,null,null,null,"備考",null,null,null,null,null,null,null,null,null,null,null,null,1,1,1]
["※各部屋で使用できる電気容量には上限がございますので、消費電力量の",null,null,null,null,null,null,null,null,null,null,null,null,null,null,null,null,null,null,null,null,null,null,null,null,null,2,2]
["　 大きい機器類をお持ち込の際には、必ず事前にお申し出ください。",null,null,null,null,null,null,null,null,null,null,null,null,null,null,null,null,null,null,null,null,null,null,null,null,null,null,3]
[]
[]
[]
[]
[]
[]
[]
[]
[]
[]
[]
[]
[]
[]
[null,null,null,null,null,null,null,null,null,null,null,null,null,null,"受　付"]
[null,null,null,null,null,null,null,null,null,null,null,null,null,null,null,null,null,null,"曜日","年","月","日"]
[null,null,null,null,null,null,null,null,null,null,null,null,null,null,null,null,null,null,"（月）",2025,1,1]
[null,null,null,null,null,null,null,null,null,null,null,null,null,null,null,null,null,null,"（火）",2026,2,2]
[null,null,null,null,null,null,null,null,null,null,null,null,null,null,null,null,null,null,"（水）",2027,3,3]
[null,null,null,null,null,null,null,null,null,null,null,null,null,null,null,null,null,null,"（木）",2028,4,4]
[null,null,null,null,null,null,null,null,null,null,null,null,null,null,null,null,null,null,"（金）",null,5,5]
[null,null,null,null,null,null,null,null,null,null,null,null,null,null,null,null,null,null,"（土）",null,6,6]
[null,null,null,null,null,null,null,null,null,null,null,null,null,null,null,null,null,null,"（日）",null,7,7]
[null,null,null,null,null,null,null,null,null,null,null,null,null,null,null,null,null,null,null,null,8,8]
[null,null,null,null,null,null,null,null,null,null,null,null,null,null,null,null,null,null,null,null,9,9]
[null,null,null,null,null,null,null,null,null,null,null,null,null,null,null,null,null,null,null,null,10,10]
[null,null,null,null,null,null,null,null,null,null,null,null,null,null,null,null,null,null,null,null,11,11]
[null,null,null,null,null,null,null,null,null,null,null,null,null,null,null,null,null,null,null,null,12,12]
[null,null,null,null,null,null,null,null,null,null,null,null,null,null,null,null,null,null,null,null,null,13]
[null,null,null,null,null,null,null,null,null,null,null,null,null,null,null,null,null,null,null,null,null,14]
[null,null,null,null,null,null,null,null,null,null,null,null,null,null,null,null,null,null,null,null,null,15]
[null,null,null,null,null,null,null,null,null,null,null,null,null,null,null,null,null,null,null,null,null,16]
[null,null,null,null,null,null,null,null,null,null,null,null,null,null,null,null,null,null,null,null,null,17]
[null,null,null,null,null,null,null,null,null,null,null,null,null,null,null,null,null,null,null,null,null,18]
[null,null,null,null,null,null,null,null,null,null,null,null,null,null,null,null,null,null,null,null,null,19]
[null,null,null,null,null,null,null,null,null,null,null,null,null,null,null,null,null,null,null,null,null,20]
[null,null,null,null,null,null,null,null,null,null,null,null,null,null,null,null,null,null,null,null,null,21]
[null,null,null,null,null,null,null,null,null,null,null,null,null,null,null,null,null,null,null,null,null,22]
[null,null,null,null,null,null,null,null,null,null,null,null,null,null,null,null,null,null,null,null,null,23]
[null,null,null,null,null,null,null,null,null,null,null,null,null,null,null,null,null,null,null,null,null,24]
[null,null,null,null,null,null,null,null,null,null,null,null,null,null,null,null,null,null,null,null,null,25]
[null,null,null,null,null,null,null,null,null,null,null,null,null,null,null,null,null,null,null,null,null,26]
[null,null,null,null,null,null,null,null,null,null,null,null,null,null,null,null,null,null,null,null,null,27]
[null,null,null,null,null,null,null,null,null,null,null,null,null,null,null,null,null,null,null,null,null,28]
[null,null,null,null,null,null,null,null,null,null,null,null,null,null,null,null,null,null,null,null,null,29]
[null,null,null,null,null,null,null,null,null,null,null,null,null,null,null,null,null,null,null,null,null,30]
[null,null,null,null,null,null,null,null,null,null,null,null,null,null,null,null,null,null,null,null,null,31]